Cogmind - Beta 13 *** ADVENTURER MODE // 2024.04.01 @ 12:37:34 Player: butterfly Result: Self-destructed Performance ------------- Evolutions (0) 0 Regions Visited (4) 800 Robots Destroyed (13) 65 Value Destroyed (497) 497 Prototype IDs (0) 0 Alien Tech Used (0) 0 Bonus (300) 300 TOTAL SCORE: 1662 Bonus ------- Aligned with FarCom 300 Cogmind --------- Core Integrity 182/250 Matter 214/300 Energy 250/250 System Corruption 0% Temperature Cool (0) Movement Walking (190) Ox1 Location -9/Mines Parts ------- > --- POWER (1) -------- Ion Engine > --- PROPULSION (2) --- Aluminum Leg Aluminum Leg > --- UTILITY (2) ------ Large Storage Unit Improved Sensor Array > --- WEAPON (2) ------- Grenade Launcher Grenade Launcher > --- INVENTORY (15) --- Ion Engine Light Nuclear Core Aluminum Leg Aluminum Leg Aluminum Leg Large Storage Unit Visual Processing Unit Signal Interpreter Light Armor Plating Hardened Medium Armor Plating Medium Laser Medium Laser Particle Gun Assault Rifle Assault Rifle Peak State ------------ > --- POWER ------------ Ion Engine > --- PROPULSION ------- Aluminum Leg Aluminum Leg > --- UTILITY ---------- Large Storage Unit Improved Sensor Array > --- WEAPON ----------- Assault Rifle Grenade Launcher > --- INVENTORY -------- Ion Engine Light Nuclear Core Aluminum Leg Aluminum Leg Heat Sink Large Storage Unit Visual Processing Unit Signal Interpreter Light Armor Plating Hardened Medium Armor Plating Medium Laser Medium Laser Particle Gun Assault Rifle [Rating: 11] Favorites ----------- Power Ion Engine Engine Ion Engine Propulsion Aluminum Leg Leg Aluminum Leg Wheel Wheel Utility Large Storage Unit Device Improved Sensor Array Storage Large Storage Unit Weapon Grenade Launcher Ballistic Gun Assault Rifle Launcher Grenade Launcher Build | -11 -10 -10 -10 -9 ------- Run | Yrd Mat Min Exi Min Slots Evolved . | . . . . . Power . | . . . . . Propulsion . | . . . . . Utility . | . . . . . Weapon . | . . . . . Parts Attached 18 | 4 11 2 . 1 Power 2 | 1 . 1 . . Engine 2 | 1 . 1 . . Core . | . . . . . Reactor . | . . . . . Propulsion 8 | 2 6 . . . Treads . | . . . . . Leg 4 | . 4 . . . Wheel 4 | 2 2 . . . Hover . | . . . . . Flight . | . . . . . Utility 4 | 1 2 1 . . Device 2 | . 1 1 . . Storage 2 | 1 1 . . . Processor . | . . . . . Hackware . | . . . . . Protection . | . . . . . Artifact . | . . . . . Weapon 4 | . 3 . . 1 Energy Gun . | . . . . . Energy Cannon . | . . . . . Ballistic Gun 2 | . 2 . . . Ballistic Cannon . | . . . . . Launcher 2 | . 1 . . 1 Special Weapon . | . . . . . Impact Weapon . | . . . . . Slashing Weapon . | . . . . . Piercing Weapon . | . . . . . Special Melee Weapon . | . . . . . Unidentified Prototypes . | . . . . . Parts Lost 1 | . 1 . . . Power . | . . . . . Propulsion 1 | . 1 . . . Utility . | . . . . . Weapon . | . . . . . Highest Loss Streak 1 | . 1 . . . To Critical Strikes . | . . . . . Average Slot Usage (%) 98 | . 92 100 100 100 Engine 14 | . 14 14 14 14 Leg 24 | . 12 28 28 28 Wheel 3 | . 14 . . . Device 12 | . 8 14 14 14 Storage 14 | . 14 14 14 14 Ballistic Gun 11 | . 20 14 14 . Launcher 16 | . 7 14 14 27 Naked Turns . | . . . . . Heaviest Build 32 | 10 31 31 31 32 Greatest Support 20 | 20 20 20 20 20 Greatest Overweight (x) 3 | . 3 1 1 1 Average Overweight (x) 1 | . 1 1 1 1 Largest Inventory Capacity 15 | 8 15 15 15 15 Average Capacity 14 | 6 14 15 15 15 Most Carried 15 | 5 15 15 15 15 Average Carried 13 | 2 8 14 14 14 Final Capacity 15 | 8 15 15 15 15 Final Carried 15 | 3 12 15 15 15 Class Distribution -------------------- 72% | Mutant 27% | Skirmisher Dominant Class ---------------- Mutant | -10/Materials Mutant | -10/Mines Mutant | -10/Exiles Skirmisher | -9/Mines Resources | -11 -10 -10 -10 -9 ----------- Run | Yrd Mat Min Exi Min Matter Collected 563 | 240 204 40 . 79 Remotely . | . . . . . Salvage Created 408 | . 260 56 . 92 Parts 26 | . 12 5 . 9 Haulers Intercepted . | . . . . . Recyclers Shooed . | . . . . . Parts Field Recycled . | . . . . . Retrieved Matter . | . . . . . Parts Self-Destructed . | . . . . . Prevented . | . . . . . Kills | -11 -10 -10 -10 -9 ------- Run | Yrd Mat Min Exi Min Combat Hostiles Destroyed 11 | . 6 2 . 3 Guns 4 | . 4 . . . AOE 7 | . 2 2 . 3 Classes Destroyed 3 | . 2 . . 1 Builder 1 | . . . . 1 Watcher 1 | . 1 . . . Grunt 11 | . 6 2 . 3 Best Kill Streak 4 | . 4 2 . 2 Combat Bots Only 4 | . 4 2 . 2 Max Kills in Single Turn 2 | . 2 1 . 2 Gunslinging . | . . . . . Exploded 2 | . 2 1 . 2 Melee . | . . . . . Uniques/NPCs Destroyed . | . . . . . Combat | -11 -10 -10 -10 -9 -------- Run | Yrd Mat Min Exi Min Hostile Shots Fired 40 | . 32 1 . 7 Missed 7 | . 6 1 . . Damage Taken 415 | . 264 12 . 139 Core 68 | . 27 4 . 37 Absorbed by Shields . | . . . . . Ignored by Resistances 128 | . 83 4 . 41 Core Remaining (%) 100 | 100 . . . . Volleys Fired 27 | . 20 3 . 4 Largest 2 | . 2 2 . 2 Hottest 60 | . 50 50 . 60 Shots Fired 54 | . 40 6 . 8 Gun 38 | . 35 3 . . Cannon . | . . . . . Launcher 16 | . 5 3 . 8 Special . | . . . . . Kinetic 38 | . 35 3 . . Thermal . | . . . . . Explosive 16 | . 5 3 . 8 Electromagnetic . | . . . . . Robot Hit Streak 20 | . 20 5 . . Robot Miss Streak 3 | . 3 . . . Penetration Max . | . . . . . Secondary Targets 2 | . 2 . . . Max Gunslinging Chain 1 | . 1 . . . Shots Hit Robots 36 | . 32 4 . . Core Hits 25 | . 15 3 . 7 Critical Kills . | . . . . . Critical Parts Destroyed 1 | . 1 . . . Critical Strikes 1 | . 1 . . . Destroy 1 | . 1 . . . Melee Attacks . | . . . . . Impact . | . . . . . Slashing . | . . . . . Piercing . | . . . . . Sneak Attacks . | . . . . . Combat Hostiles . | . . . . . Follow-up Attacks . | . . . . . Damage Inflicted 890 | . 557 128 . 205 Guns 419 | . 393 26 . . Cannons . | . . . . . Explosions 471 | . 164 102 . 205 Melee . | . . . . . Ramming . | . . . . . Kinetic 419 | . 393 26 . . Thermal . | . . . . . Explosive 471 | . 164 102 . 205 Electromagnetic . | . . . . . Impact . | . . . . . Slashing . | . . . . . Piercing . | . . . . . Highest Corruption . | . . . . . Average Corruption . | . . . . . Corruption Purged . | . . . . . Corruption Blocked . | . . . . . Overload Shots . | . . . . . Overflow Damage . | . . . . . Projectiles . | . . . . . Explosions . | . . . . . Melee . | . . . . . Knockbacks . | . . . . . Impact . | . . . . . Kinetic . | . . . . . Secondary . | . . . . . Self-Inflicted Damage 99 | . 31 12 . 56 Shots 5 | . 1 2 . 2 Rammed . | . . . . . Targets Rammed . | . . . . . Kicked . | . . . . . Crushed . | . . . . . Highest Temperature 16 | . 3 . . 16 Average Temperature 6 | . 1 . . 9 Received Heat Transfer 252 | . 171 . . 81 Siege Activations . | . . . . . Robots Corrupted . | . . . . . Combat Hostiles . | . . . . . Parts Fried . | . . . . . Impact Corruptions . | . . . . . Robots Melted . | . . . . . Combat Hostiles . | . . . . . Parts Melted . | . . . . . Heat Transferred . | . . . . . Parts Sabotaged . | . . . . . Parts Stolen . | . . . . . Parts Stripped . | . . . . . Power Chain Reactions . | . . . . . Alert | -11 -10 -10 -10 -9 ------- Run | Yrd Mat Min Exi Min Peak Influence 232 | . 232 72 . 148 Initial 10 | . . 10 . . Average 55 | . 120 53 . 5 Maximum Alert Level 1 | . 1 . . . Low Security (%) 90 | 100 71 100 . 100 Level 1 9 | . 28 . . . Level 2 . | . . . . . Level 3 . | . . . . . Level 4 . | . . . . . Level 5 . | . . . . . High Security . | . . . . . Max Security . | . . . . . Squads Dispatched 1 | . . 1 . . Investigation 1 | . . 1 . . Extermination . | . . . . . Reinforcement . | . . . . . Assault . | . . . . . Garrison . | . . . . . Intercept . | . . . . . Searches Triggered . | . . . . . Construction Impeded . | . . . . . Haulers Reinforced . | . . . . . Active Scanning Responses . | . . . . . Cargo Convoy Interrupts . | . . . . . Stealth | -11 -10 -10 -10 -9 --------- Run | Yrd Mat Min Exi Min Distress Signals . | . . . . . Communications Jammed . | . . . . . Distress Signals . | . . . . . Times Spotted 11 | . 8 2 . 1 Peak Tracking Total 4 | . 4 2 . 1 Tactical Retreats 1 | . 1 . . . Traps | -11 -10 -10 -10 -9 ------- Run | Yrd Mat Min Exi Min Traps Triggered 1 | . 1 . . . Indirectly . | . . . . . Trap Hack Attempts . | . . . . . Triggered . | . . . . . Disarmed . | . . . . . Reprogrammed . | . . . . . Reused . | . . . . . Traps Extracted . | . . . . . Installed . | . . . . . Triggered . | . . . . . Machines | -11 -10 -10 -10 -9 ---------- Run | Yrd Mat Min Exi Min Machines Disabled 5 | . 3 . . 2 Max in Single Turn 2 | . 2 . . 1 Machines Repaired . | . . . . . Machines Dismantled . | . . . . . Machines Sabotaged . | . . . . . Overloaded Fab Kills . | . . . . . Hacking | -11 -10 -10 -10 -9 --------- Run | Yrd Mat Min Exi Min Machines Accessed 3 | . 2 1 . . Terminals 2 | . 2 . . . Fabricators . | . . . . . Repair Stations . | . . . . . Recycling Units . | . . . . . Scanalyzers . | . . . . . Garrison Access . | . . . . . Total Hacks 4 | . 3 1 . . Successful 3 | . 2 1 . . Failed 1 | . 1 . . . Catastrophic . | . . . . . Database Lockouts . | . . . . . Manual . | . . . . . Terminals 3 | . 3 . . . Fabricators . | . . . . . Repair Stations . | . . . . . Recycling Units . | . . . . . Scanalyzers . | . . . . . Garrison Access . | . . . . . Terminal Hacks 3 | . 2 1 . . Open Door 1 | . . 1 . . Zone Layout 2 | . 2 . . . Fabricator Hacks . | . . . . . Repair Station Hacks . | . . . . . Recycling Unit Hacks . | . . . . . Scanalyzer . | . . . . . Garrison Access Hacks . | . . . . . Unauthorized Hacks . | . . . . . Terminals . | . . . . . Fabricators . | . . . . . Repair Stations . | . . . . . Recycling Units . | . . . . . Scanalyzers . | . . . . . Garrison Access . | . . . . . Data Cores Recovered . | . . . . . Used . | . . . . . Hacking Detections 1 | . 1 . . . Full Trace Events . | . . . . . Feedback Events . | . . . . . Feedback Blocked . | . . . . . Robot Schematics Acquired . | . . . . . Robots Built . | . . . . . Authchips . | . . . . . Time . | . . . . . Total Robot Build Rating . | . . . . . Part Schematics Acquired . | . . . . . Parts Built . | . . . . . Authchips . | . . . . . Time . | . . . . . Total Part Build Rating . | . . . . . Parts Repaired . | . . . . . Time . | . . . . . Parts Recycled . | . . . . . Recycled Matter . | . . . . . Retrieved Matter . | . . . . . Retrieved Components . | . . . . . Parts Scanalyzed . | . . . . . Part Schematics Acquired . | . . . . . Parts Damaged . | . . . . . Bothacking | -11 -10 -10 -10 -9 ------------ Run | Yrd Mat Min Exi Min Used RIF Installer . | . . . . . Robots Hacked . | . . . . . Non-combat . | . . . . . Combat . | . . . . . Robot Hacks Applied . | . . . . . Relay Couplers Released . | . . . . . Fabnet Peak Effective % . | . . . . . Robots Rewired . | . . . . . Allies Hacked . | . . . . . Hacks Repelled . | . . . . . Allies | -11 -10 -10 -10 -9 -------- Run | Yrd Mat Min Exi Min Total Allies . | . . . . . Largest Group . | . . . . . Highest-Rated Group . | . . . . . Highest-Rated Ally . | . . . . . Total Orders . | . . . . . Ally Attacks . | . . . . . Total Damage . | . . . . . Kills . | . . . . . Allies Corrupted . | . . . . . Allies Melted . | . . . . . Intel | -11 -10 -10 -10 -9 ------- Run | Yrd Mat Min Exi Min Robot Analysis Total . | . . . . . Derelict Logs Recovered 1 | . . . . 1 Drone Launches . | . . . . . Drone Recoveries . | . . . . . Exploration | -11 -10 -10 -10 -9 ------------- Run | Yrd Mat Min Exi Min Turns Passed 1952 | 42 452 285 637 536 Spaces Moved 1064 | 41 272 143 335 273 Core 15 | 15 . . . . Treads . | . . . . . Legs 849 | . 98 143 335 273 Wheels 200 | 26 174 . . . Hover . | . . . . . Flight . | . . . . . Fastest Speed 50 | 50 80 190 190 190 Average Speed 170 | 69 131 190 190 190 Slowest Speed 190 | 80 190 190 190 190 Overloaded Moves . | . . . . . Propulsion Burnouts . | . . . . . Robots Hopped . | . . . . . Cave-ins Triggered . | . . . . . Exploration Rate (%) 40 | 3 40 32 66 62 Regions Visited 4 Branch Regions 3 Pre-discovered Areas . | . . . . . Known Exits Taken . | . . . . . Unknown Exits Taken 4 | 1 1 1 1 . Scrap Searched 1 | . . . . 1 Spaces Dug . | . . . . . Terrain Destroyed 102 | . 22 13 . 67 Melee . | . . . . . Projectile . | . . . . . AOE 102 | . 22 13 . 67 Terrain Rammed . | . . . . . Walls Destroyed . | . . . . . Machines Disabled . | . . . . . Actions | -11 -10 -10 -10 -9 --------- Run | Yrd Mat Min Exi Min Total 1147 | 54 325 150 336 282 Wait 8 | 3 3 . . 2 Move 1060 | 40 271 142 334 273 Hop . | . . . . . Pick Up 29 | 7 17 3 1 1 Fast Attach . | . . . . . Attach 9 | 4 5 . . . Detach . | . . . . . Swap 9 | . 6 2 . 1 Drop 5 | . 3 . 1 1 Fire 27 | . 20 3 . 4 Melee . | . . . . . Ram . | . . . . . Kick . | . . . . . Crush . | . . . . . Escape Stasis . | . . . . . Rewire . | . . . . . Trap . | . . . . . Miscellaneous . | . . . . . Route ------- -11/Scrapyard -10/Materials -10/Mines -10/Exiles -9/Mines History --------- Turn | Location | Event 14 | -11/Scrapyard | Discovered new exit (range 16) 43 | -11/Scrapyard | Entered Materials 288 | -10/Materials | Discovered new exit (range 22) 300 | -10/Materials | Build established: Mutant 495 | -10/Materials | Entered Mines 514 | -10/Mines | Met a Derelict shopkeep closing up shop 541 | -10/Mines | Met a Derelict bent on vengeance 574 | -10/Mines | Assembled infested the area 744 | -10/Mines | Met 8R-AWN 771 | -10/Mines | Discovered new exit (range 5) 780 | -10/Mines | Entered Exiles 809 | -10/Exiles | Discovered new exit (range 14) 830 | -10/Exiles | Welcomed by 8R-AWN 862 | -10/Exiles | Met EX-HEX 929 | -10/Exiles | Met EX-BIN 972 | -10/Exiles | Aligned with FarCom system 974 | -10/Exiles | Given EX-Vault access code 1105 | -10/Exiles | Met EX-DEC 1167 | -10/Exiles | Visited The Gauntlet 1342 | -10/Exiles | Learned about 8R-AWN's background 1417 | -10/Exiles | Entered Mines 1517 | -9/Mines | Learned location of 1 exit from Materials 1733 | -9/Mines | Build established: Skirmisher 1953 | -9/Mines | Self-destructed Last Messages --------------- T-07 Excavator is excavating. K-01 Serf collects debris. T-07 Excavator is excavating. K-01 Serf collects debris. T-07 Excavator is excavating. K-01 Serf collects debris. T-07 Excavator is excavating. K-01 Serf collects debris. T-07 Excavator is excavating. K-01 Serf collects debris. T-07 Excavator is excavating. K-01 Serf collects debris. Laser Drill disabled. G-34 Mercenary destroyed. The unstable cave ceiling collapses. Critical hit (Burn: +37). U-05 Engineer lays Concrete. U-05 Engineer destroyed. G-47 Trooper destroyed. Acquired 18 matter. Map ----- +----------------------------------------------------+ | | | | | | | | | | | | | | | | | | | | | | | | | | | | | | | | | | | | | ???????????????????????????????????????????????? | | ????????????#??????????????????????????????????? | | ???????????? ????????????????????????????????? | | ??????????# ????#######???????????????????? | | ??????????# ??# # ####????????????????? | | ??????????# # ####?????????????? | | ??????????# = =%* t #?????????????? | | ??????###?# # @= ##?????????????????? | | ?????? ##?# = * ??## #?????????????????? | | ????? #?# ?????### #?????????????????? | | ###?# #?####?????????# # ## #??????????????? | | ## #??????????????# #??????????????? | | #???????????????# ######??????????????? | | #????????????????# #???????????????????? | | #?????????????????# #???????????????????? | | #####?????????????????# ######??????????????? | | #???????????????????### ##?????????????? | | #??????????????????## ##????????????? | | #?????????????????## #????????????? | | #????????????????## #????????????? | | #???????????????## ##????????????? | | !#???????????##### ##?????????????? | | !#?????????### ##??????????????? | | #????????## ##???????????????? | | #???????## ###????????????????? | | ######### ### #??????????????????? | | ##?? #??????????????????? | | ##??? #??????????????????? | | ######## #### ##???? ??????????????????? | | ###??????## #??#####????? ##?????????????????? | | ??????????# ###?????????? #??????????????????? | | ??????????# #?????????? #??????????????????? | +----------------------------------------------------+ Best States ------------- Heat Dissipation 35 Energy Generation 10 Energy Capacity 250 Matter Stores 300 Matter Capacity 300 Sight Range 16 Robot Scan Range 15 Terrain Scan Density 10 Resistance: KI 20 Resistance: TH 20 Resistance: EX 20 Resistance: EM 20 Resistance: I 20 Resistance: S 20 Resistance: P 20 Evasion (%) 50 Offensive Hacking 10 Item Schematics ----------------- None Robot Schematics ------------------ None Fabricated ------------ Nothing Alien Tech Used ----------------- None Achievements -------------- None Challenges ------------ None Game ------ Seed NuclearSiegeMegatreads Manual? 0 Play Time 00:28:54 Cumulative 4.3 hours Start 2024.03.30 @ 21:56:09 End 2024.04.01 @ 12:37:34 Sessions 3 Manual Loads 0 Difficulty Adventurer Special Mode None Game No. 8 Rogue 2 Adventurer 6 Explorer 0 Win Type - Total 0 Types 0/0/0/0/0/0/0/0/0 Lore% 7 Gallery% 8 Achievement% 11 Wizard Run 0 Options --------- Layout 1 ASCII 1 Keyboard 0 Movement Vi Keybinds 0 Fullscreen 1 Font 24/Smallcaps Map View 50x35 Zoom Use 0% Tactical HUD 0 Map Filters NONE Filters NONE Steam 1 RUN: b17cc3e2-a99a-4017-bc0f-5b774098ba92